Workbook

Sheet Property Info
A1: Version | B1: v6.0
A2: Name | B2: Avondale Run Homeowners Association, Inc.
A3: City | B3: Westminster
A4: State | B4: Maryland
A5: Reference Number | B5: 232760 | F5: Expenditures Plan | G5: Current Reserve Balance | H5: =Current_Fiscal_Year&" Budgeted Contribution" -> 2023 Budgeted Contribution | I5: =Current_Fiscal_Year + 1&" Budgeted Contribution" -> 2024 Budgeted Contribution
A6: Length of Study (Years) | B6: 30 | F6: Funding Plan | G6: 82970.98 | H6: 0 | I6: Not Budgeted
A7: Number of Units | B7: 110
A8: Number of Buildings | B8: 18
A9: Date of Inspection | B9: 2023-10-26
A10: Current Fiscal Year | B10: 2023
A11: Fiscal Year Beginning | B11: 2023-01-01
A12: First Year of Recommendation | B12: 2024
A13: Remaining Budgeted Month | B13: 2
A14: Remaining Months of Interest | B14: 2
A15: Beginning Reserve Balance Date | B15: 2023-10-26
A16: Is Balance Projected? | B16: No
A17: Near Term Inflation | B17: 0.03
A18: Last Year of Near Term Inflation | B18: 2064
A19: Remaining Study Inflation | B19: 0.03
A20: Interest | B20: 0.02
A21: Frequency of Contributions | B21: 12
A22: Currency Symbol | B22: $
A23: Values rounded by | B23: 1
A24: Total Operating Budget | B24: 34120
A25: Property Type | B25: homeowners association
A27: © 2023 Reserve Advisors LLC. All rights reserved. Any unauthorized copying, alteration, distribution, transmission, display or other use of this spreadsheet and its contents, data or formula are strictly prohibited. This spreadsheet is licensed to you pursuant to (and is subject in all respects to the terms and conditions of) your agreement with Reserve Advisors LLC. Reserve Advisors LLC does not make, and expressly disclaims, any representations or warranties (express or implied), including, without limitation, as to the accuracy or timeliness of information prepared by you or any third parties, whether linked to this spreadsheet or incorporated herein. We encourage you to contact us at www.reserveadvisors.com with any questions.

Sheet Expenditures
N2: RESERVE EXPENDITURES | Y2: Inflation Notes:
X3: 1) | Y3: =IF(Inflation=secondaryInflation,Inflation,secondaryInflation) -> 0.03 | Z3: =IF(Inflation=secondaryInflation,"is the estimated Inflation Rate for estimating Future Replacement Costs.","is the estimated Inflation Rate through "&secondaryInflationYear&".") -> is the estimated Inflation Rate for estimating Future Replacement Costs.
N4: Avondale Run | X4: 2) | Y4: FY2023 is Fiscal Year beginning January 1, 2023 and ending December 31, 2023.
N5: Homeowners Association, Inc.
N6: Westminster, Maryland
O7: Estimated | P7: Life Analysis, | R7: Costs, $ | W7: Percentage | X7: =IF(secondaryInflationYear>=X$9,secondaryInflation,Inflation) -> 0.03 | Y7: 0.03 | Z7: 0.03 | AA7: 0.03 | AB7: 0.03 | AC7: 0.03 | AD7: 0.03 | AE7: 0.03 | AF7: 0.03 | AG7: 0.03 | AH7: 0.03 | AI7: 0.03 | AJ7: 0.03 | AK7: 0.03 | AL7: 0.03 | AM7: 0.03 | AN7: 0.03 | AO7: 0.03 | AP7: 0.03 | AQ7: 0.03 | AR7: 0.03 | AS7: 0.03 | AT7: 0.03 | AU7: 0.03 | AV7: 0.03 | AW7: 0.03 | AX7: 0.03 | AY7: 0.03 | AZ7: 0.03 | BA7: 0.03 | BB7: 0.03
B8: Partial | C8: Frequency | D8: Length | E8: Events | F8: Next Full | G8: Useful | H8: Round | J8: Line | K8: Total | L8: Per Phase | O8: 1st Year of | P8: Years | R8: Unit | S8: Percentage | T8: Per Phase | U8: Total | V8: 30-Year Total | W8: of Future | X8: 0 | Y8: 1 | Z8: 2 | AA8: 3 | AB8: 4 | AC8: 5 | AD8: 6 | AE8: 7 | AF8: 8 | AG8: 9 | AH8: 10 | AI8: 11 | AJ8: 12 | AK8: 13 | AL8: 14 | AM8: 15 | AN8: 16 | AO8: 17 | AP8: 18 | AQ8: 19 | AR8: 20 | AS8: 21 | AT8: 22 | AU8: 23 | AV8: 24 | AW8: 25 | AX8: 26 | AY8: 27 | AZ8: 28 | BA8: 29 | BB8: 30
B9: Quantity | C9: of Events | D9: of Phase | E9: Per Phase | F9: Repl. | G9: Life | H9: Phase | J9: Item | K9: Quantity | L9: Quantity | M9: Units | N9: Reserve Component Inventory | O9: Event | P9: Useful | Q9: Remaining | R9: (2023) | S9: Ownership | T9: (2023) | U9: (2023) | V9: (Inflated) | W9: Expenditures | X9: 2023 | Y9: 2024 | Z9: 2025 | AA9: 2026 | AB9: 2027 | AC9: 2028 | AD9: 2029 | AE9: 2030 | AF9: 2031 | AG9: 2032 | AH9: 2033 | AI9: 2034 | AJ9: 2035 | AK9: 2036 | AL9: 2037 | AM9: 2038 | AN9: 2039 | AO9: 2040 | AP9: 2041 | AQ9: 2042 | AR9: 2043 | AS9: 2044 | AT9: 2045 | AU9: 2046 | AV9: 2047 | AW9: 2048 | AX9: 2049 | AY9: 2050 | AZ9: 2051 | BA9: 2052 | BB9: 2053
D10: - | E10: - | F10: - | G10: - | J10: - | L10: - | M10: - | N10: - | O10: - | P10: - | Q10: - | R10: - | S10: - | T10: - | U10: - | V10: - | W10: - | X10: - | Y10: - | Z10: - | AA10: - | AB10: - | AC10: - | AD10: - | AE10: - | AF10: - | AG10: - | AH10: - | AI10: - | AJ10: - | AK10: - | AL10: - | AM10: - | AN10: - | AO10: - | AP10: - | AQ10: - | AR10: - | AS10: - | AT10: - | AU10: - | AV10: - | AW10: - | AX10: - | AY10: - | AZ10: - | BA10: - | BB10: -
N11: Property Site Elements
B12: 1 | C12: 1 | D12: =((E12-1)*C12)+1 -> 1 | E12: 1 | F12: 2030 | G12: 15 | H12: 0.01 | J12: 4.04 | K12: 5400 | L12: =IF(M12="Allowance",1,ROUND((K12*B12/E12/H12),0)*H12) -> 5400 | M12: Square Yards | N12: Asphalt Pavement, Repaving, Parking Areas | O12: =Current_Fiscal_Year+MATCH(TRUE,INDEX($X12:$BB12<>"",0),0)-1 -> 2030 | P12: 15 to 20 | Q12: =O12-Current_Fiscal_Year&IF(B12<1," to "&Study_Length&"+",IF( E12>1," to "&IF(O12-Current_Fiscal_Year+D12-1>Study_Length,Study_Length&"+",O12-Current_Fiscal_Year+D12-1),"")) -> 7 | R12: 18.5 | S12: 1 | T12: =L12*R12*S12 -> 99900 | U12: =K12*R12*S12 -> 99900 | V12: =SUM(OFFSET(X12,,,1,Study_Length+1)) -> 314283 | W12: =V12/Total_Study_Expenditures -> 0.5856332281 | X12: =TIMING("yes",1,$L12,$R12,$S12,X$7,X$8,secondaryInflation,secondaryInflationYear,Current_Fiscal_Year,$D12,$E12,$F12-Current_Fiscal_Year,$G12,1) ->  | AE12: 122864 | AH12: =TIMING("yes",1,$L12,$R12,$S12,AH$7,AH$8,secondaryInflation,secondaryInflationYear,Current_Fiscal_Year,$D12,$E12,$F12-Current_Fiscal_Year,$G12,1) ->  | AR12: =TIMING("yes",1,$L12,$R12,$S12,AR$7,AR$8,secondaryInflation,secondaryInflationYear,Current_Fiscal_Year,$D12,$E12,$F12-Current_Fiscal_Year,$G12,1) ->  | AT12: 191419
B13: 0.3 | C13: 1 | D13: 1 | E13: 2 | F13: 2030 | G13: 15 | H13: 10 | J13: 4.11 | K13: 4400 | L13: =IF(M13="Allowance",1,ROUND((K13*B13/E13/H13),0)*H13) -> 660 | M13: Linear Feet | N13: Concrete Curbs and Gutters, Partial | O13: =Current_Fiscal_Year+MATCH(TRUE,INDEX($X13:$BB13<>"",0),0)-1 -> 2030 | P13: to 65 | Q13: =O13-Current_Fiscal_Year&IF(B13<1," to "&Study_Length&"+",IF( E13>1," to "&IF(O13-Current_Fiscal_Year+D13-1>Study_Length,Study_Length&"+",O13-Current_Fiscal_Year+D13-1),"")) -> 7 to 30+ | R13: 36 | S13: 1 | T13: =L13*R13*S13 -> 23760 | U13: =K13*R13*S13 -> 158400 | V13: =SUM(OFFSET(X13,,,1,Study_Length+1)) -> 74749 | W13: 0.1392868789 | AE13: 29222 | AT13: 45527
B14: 0.4 | C14: 1 | D14: 1 | E14: 6 | F14: 2027 | G14: 5 | H14: 10 | J14: 4.14 | K14: 15000 | L14: =IF(M14="Allowance",1,ROUND((K14*B14/E14/H14),0)*H14) -> 1000 | M14: Square Feet | N14: Concrete Sidewalks, Partial | O14: =Current_Fiscal_Year+MATCH(TRUE,INDEX($X14:$BB14<>"",0),0)-1 -> 2027 | P14: to 65 | Q14: =O14-Current_Fiscal_Year&IF(B14<1," to "&Study_Length&"+",IF( E14>1," to "&IF(O14-Current_Fiscal_Year+D14-1>Study_Length,Study_Length&"+",O14-Current_Fiscal_Year+D14-1),"")) -> 4 to 30+ | R14: 11.5 | S14: 1 | T14: =L14*R14*S14 -> 11500 | U14: =K14*R14*S14 -> 172500 | V14: =SUM(OFFSET(X14,,,1,Study_Length+1)) -> 115986 | W14: 0.2161276798 | AB14: 12943 | AG14: 15005 | AL14: 17395 | AQ14: 20165 | AV14: 23377 | BA14: 27101
B15: 1 | C15: 1 | D15: =((E15-1)*C15)+1 -> 1 | E15: 1 | F15: 2031 | G15: 20 | H15: 0.01 | J15: 4.8 | K15: 1 | L15: =IF(M15="Allowance",1,ROUND((K15*B15/E15/H15),0)*H15) -> 1 | M15: Each | N15: Signage, Property Identification | O15: =Current_Fiscal_Year+MATCH(TRUE,INDEX($X15:$BB15<>"",0),0)-1 -> 2031 | P15: 15 to 20 | Q15: =O15-Current_Fiscal_Year&IF(B15<1," to "&Study_Length&"+",IF( E15>1," to "&IF(O15-Current_Fiscal_Year+D15-1>Study_Length,Study_Length&"+",O15-Current_Fiscal_Year+D15-1),"")) -> 8 | R15: 8900 | S15: 1 | T15: =L15*R15*S15 -> 8900 | U15: =K15*R15*S15 -> 8900 | V15: =SUM(OFFSET(X15,,,1,Study_Length+1)) -> 31637 | W15: =V15/Total_Study_Expenditures -> 0.05895221325 | AF15: 11274 | AZ15: 20363
J17: || | N17: - | O17: - | Q17: - | R17: - | S17: - | T17: - | V17: - | W17: - | X17: - | Y17: - | Z17: - | AA17: - | AB17: - | AC17: - | AD17: - | AE17: - | AF17: - | AG17: - | AH17: - | AI17: - | AJ17: - | AK17: - | AL17: - | AM17: - | AN17: - | AO17: - | AP17: - | AQ17: - | AR17: - | AS17: - | AT17: - | AU17: - | AV17: - | AW17: - | AX17: - | AY17: - | AZ17: - | BA17: - | BB17: -
N18: ="Anticipated Expenditures, By Year ("&Currency_Symbol&TEXT($V$18,"#,##0")&" over "&Study_Length&" years)" -> Anticipated Expenditures, By Year ($536,655 over 30 years) | V18: =SUM(OFFSET(X18,,,1,Study_Length+1)) -> 536655 | X18: =SUM(X10:X17) -> 0 | Y18: =SUM(Y10:Y17) -> 0 | Z18: =SUM(Z10:Z17) -> 0 | AA18: =SUM(AA10:AA17) -> 0 | AB18: =SUM(AB10:AB17) -> 12943 | AC18: =SUM(AC10:AC17) -> 0 | AD18: =SUM(AD10:AD17) -> 0 | AE18: =SUM(AE10:AE17) -> 152086 | AF18: =SUM(AF10:AF17) -> 11274 | AG18: =SUM(AG10:AG17) -> 15005 | AH18: =SUM(AH10:AH17) -> 0 | AI18: =SUM(AI10:AI17) -> 0 | AJ18: =SUM(AJ10:AJ17) -> 0 | AK18: =SUM(AK10:AK17) -> 0 | AL18: =SUM(AL10:AL17) -> 17395 | AM18: =SUM(AM10:AM17) -> 0 | AN18: =SUM(AN10:AN17) -> 0 | AO18: =SUM(AO10:AO17) -> 0 | AP18: =SUM(AP10:AP17) -> 0 | AQ18: =SUM(AQ10:AQ17) -> 20165 | AR18: =SUM(AR10:AR17) -> 0 | AS18: =SUM(AS10:AS17) -> 0 | AT18: =SUM(AT10:AT17) -> 236946 | AU18: =SUM(AU10:AU17) -> 0 | AV18: =SUM(AV10:AV17) -> 23377 | AW18: =SUM(AW10:AW17) -> 0 | AX18: =SUM(AX10:AX17) -> 0 | AY18: =SUM(AY10:AY17) -> 0 | AZ18: =SUM(AZ10:AZ17) -> 20363 | BA18: =SUM(BA10:BA17) -> 27101 | BB18: =SUM(BB10:BB17) -> 0

Sheet Funding Plan
C1: RESERVE FUNDING PLAN
C3: CASH FLOW ANALYSIS
C4: Avondale Run
A5: Unit | C5: Homeowners Association, Inc. | F5: Individual Reserve Budgets & Cash Flows for the Next 30 Years
C6: Westminster, Maryland | E6: 2023 | F6: 2024 | G6: 2025 | H6: 2026 | I6: 2027 | J6: 2028 | K6: 2029 | L6: 2030 | M6: 2031 | N6: 2032 | O6: 2033 | P6: 2034 | Q6: 2035 | R6: 2036 | S6: 2037 | T6: 2038
B7: Reserves at Beginning of Year | D7: (Note 1) | E7: =IF(Reserve_Balance_Projected?="Yes","N/A",Funding_Plan_Balance) -> 82970.98 | F7: =E16 -> 83247.98 | G7: 97335.98 | H7: 112109.98 | I7: 127582.98 | J7: 130696.98 | K7: 147349.98 | L7: 164739.98 | M7: 29274.98 | N7: 33724.98 | O7: 34999.98 | P7: 51960.98 | Q7: 69765.98 | R7: 88431.98 | S7: 107976.98 | T7: 110848.98
C8: Recommended Reserve Contributions | E8: =IF(Reserve_Balance_Projected?="Yes","N/A",Funding_Plan_CurrentContrib/Frequency_of_Contributions_Number*Remaining_Budgeted_Months) -> 0 | F8: =IF(First_Year_of_Recommendation=Current_Fiscal_Year+2,E160,E161) -> 12300 | G8: 12700 | H8: 13100 | I8: 13500 | J8: 13900 | K8: 14300 | L8: 14700 | M8: 15100 | N8: 15600 | O8: 16100 | P8: 16600 | Q8: 17100 | R8: 17600 | S8: 18100 | T8: 18600
C9: Additional Reserve Contributions
C10: Additional Assessment
B11: Total Recommended Reserve Contributions | D11: (Note 2) | E11: =IF(Reserve_Balance_Projected?="Yes","N/A",SUM(E8,E9,E10)) -> 0 | F11: =SUM(F8,F9,F10) -> 12300 | G11: 12700 | H11: 13100 | I11: 13500 | J11: 13900 | K11: 14300 | L11: 14700 | M11: 15100 | N11: 15600 | O11: 16100 | P11: 16600 | Q11: 17100 | R11: 17600 | S11: 18100 | T11: 18600
B12: Anticipated Interest Rate | E12: =Interest -> 0.02 | F12: 0.02 | G12: 0.02 | H12: 0.02 | I12: 0.02 | J12: 0.02 | K12: 0.02 | L12: 0.02 | M12: 0.02 | N12: 0.02 | O12: 0.02 | P12: 0.02 | Q12: 0.02 | R12: 0.02 | S12: 0.02 | T12: 0.02
B13: Estimated Interest Earned, During Year | D13: (Note 3) | E13: =IF(Reserve_Balance_Projected?="Yes","N/A",ROUND(E12*(E7+E14/2+E11/2)*(Remaining_Interest_Months/12),0)) -> 277 | F13: =ROUND(F12*(F7+F14/2+F11/2),0) -> 1788 | G13: 2074 | H13: 2373 | I13: 2557 | J13: 2753 | K13: 3090 | L13: 1921 | M13: 624 | N13: 680 | O13: 861 | P13: 1205 | Q13: 1566 | R13: 1945 | S13: 2167 | T13: 2403
B14: Anticipated Expenditures, By Year | E14: =IF(Reserve_Balance_Projected?="Yes","N/A",-expenditures0) -> 0 | F14: =-expenditures1 -> 0 | G14: =-expenditures2 -> 0 | H14: =-expenditures3 -> 0 | I14: =-expenditures4 -> -12943 | J14: =-expenditures5 -> 0 | K14: =-expenditures6 -> 0 | L14: =-expenditures7 -> -152086 | M14: =-expenditures8 -> -11274 | N14: =-expenditures9 -> -15005 | O14: =-expenditures10 -> 0 | P14: =-expenditures11 -> 0 | Q14: =-expenditures12 -> 0 | R14: =-expenditures13 -> 0 | S14: =-expenditures14 -> -17395 | T14: =-expenditures15 -> 0
E15: - | F15: - | G15: - | H15: - | I15: - | J15: - | K15: - | L15: - | M15: - | N15: - | O15: - | P15: - | Q15: - | R15: - | S15: - | T15: -
B16: Anticipated Reserves at Year End | E16: =IF(Reserve_Balance_Projected?="Yes",Funding_Plan_Balance,SUM(E7,E11,E13,E14)) -> 83247.98 | F16: =SUM(F7,F11,F13,F14) -> 97335.98 | G16: 112109.98 | H16: 127582.98 | I16: 130696.98 | J16: 147349.98 | K16: 164739.98 | L16: 29274.98 | M16: 33724.98 | N16: 34999.98 | O16: 51960.98 | P16: 69765.98 | Q16: 88431.98 | R16: 107976.98 | S16: 110848.98 | T16: 131851.98
L17: (NOTE 5)
C18: Predicted Reserves based on 2023 funding level of: | D18: 0 | E18: 83247.98 | F18: 84912.98 | G18: 86610.98 | H18: 88342.98 | I18: 77036.98 | J18: 78577.98 | K18: 80149.98 | L18: -71854.02 | M18: -84678.02
C26: (continued) | F26: Individual Reserve Budgets & Cash Flows for the Next 30 Years, Continued
F27: 2039 | G27: 2040 | H27: 2041 | I27: 2042 | J27: 2043 | K27: 2044 | L27: 2045 | M27: 2046 | N27: 2047 | O27: 2048 | P27: 2049 | Q27: 2050 | R27: 2051 | S27: 2052 | T27: 2053
B28: Reserves at Beginning of Year | F28: =T16 -> 131851.98 | G28: =F37 -> 153880.98 | H28: 176956.98 | I28: 201099.98 | J28: 205964.98 | K28: 231899.98 | L28: 258959.98 | M28: 47952.98 | N28: 72747.98 | O28: 75134.98 | P28: 101887.98 | Q28: 129882.98 | R28: 159245.98 | S28: 169436.98 | T28: 173834.98
C29: Recommended Reserve Contributions | F29: 19200 | G29: 19800 | H29: 20400 | I29: 21000 | J29: 21600 | K29: 22200 | L29: 22900 | M29: 23600 | N29: 24300 | O29: 25000 | P29: 25700 | Q29: 26500 | R29: 27300 | S29: 28100 | T29: 28900
C30: Additional Reserve Contributions
C31: Additional Assessment
B32: Total Recommended Reserve Contributions | F32: =SUM(F29,F30,F31) -> 19200 | G32: 19800 | H32: 20400 | I32: 21000 | J32: 21600 | K32: 22200 | L32: 22900 | M32: 23600 | N32: 24300 | O32: 25000 | P32: 25700 | Q32: 26500 | R32: 27300 | S32: 28100 | T32: 28900
B33: Anticipated Interest Rate | F33: =Interest -> 0.02 | G33: 0.02 | H33: 0.02 | I33: 0.02 | J33: 0.02 | K33: 0.02 | L33: 0.02 | M33: 0.02 | N33: 0.02 | O33: 0.02 | P33: 0.02 | Q33: 0.02 | R33: 0.02 | S33: 0.02 | T33: 0.02
B34: Estimated Interest Earned, During Year | F34: =ROUND(F33*(F28+F35/2+F32/2),0) -> 2829 | G34: 3276 | H34: 3743 | I34: 4030 | J34: 4335 | K34: 4860 | L34: 3039 | M34: 1195 | N34: 1464 | O34: 1753 | P34: 2295 | Q34: 2863 | R34: 3254 | S34: 3399 | T34: 3766
B35: Anticipated Expenditures, By Year | F35: =-expenditures16 -> 0 | G35: =-expenditures17 -> 0 | H35: =-expenditures18 -> 0 | I35: =-expenditures19 -> -20165 | J35: =-expenditures20 -> 0 | K35: =-expenditures21 -> 0 | L35: =-expenditures22 -> -236946 | M35: =-expenditures23 -> 0 | N35: =-expenditures24 -> -23377 | O35: =-expenditures25 -> 0 | P35: =-expenditures26 -> 0 | Q35: =-expenditures27 -> 0 | R35: =-expenditures28 -> -20363 | S35: =-expenditures29 -> -27101 | T35: =-expenditures30 -> 0
F36: - | G36: - | H36: - | I36: - | J36: - | K36: - | L36: - | M36: - | N36: - | O36: - | P36: - | Q36: - | R36: - | S36: - | T36: -
B37: Anticipated Reserves at Year End | F37: =SUM(F28,F32,F34,F35) -> 153880.98 | G37: 176956.98 | H37: 201099.98 | I37: 205964.98 | J37: 231899.98 | K37: 258959.98 | L37: 47952.98 | M37: 72747.98 | N37: 75134.98 | O37: 101887.98 | P37: 129882.98 | Q37: 159245.98 | R37: 169436.98 | S37: 173834.98 | T37: 206500.98
L38: (NOTE 5) | T38: (NOTE 4)
B43: Explanatory Notes:
A44: 1) | B44: Year 2023 starting reserves are as of October 26, 2023; FY2023 starts January 1, 2023 and ends December 31, 2023.
A45: 2) | B45: =IF(Remaining_Budgeted_Months=0,"",IF(Remaining_Budgeted_Months/Frequency_of_Contributions_Number=1,"Reserve Contributions for "&Current_Fiscal_Year&" are budgeted; ","Reserve Contributions for "&Current_Fiscal_Year&" are the remaining budgeted; "))&IF(First_Year_of_Recommendation=Current_Fiscal_Year+1,First_Year_of_Recommendation&" is the first year of recommended contributions.",Current_Fiscal_Year+1&" contributions are budgeted; "&First_Year_of_Recommendation&" is the first year of recommended contributions.") -> Reserve Contributions for 2023 are the remaining budgeted; 2024 is the first year of recommended contributions.
A46: 3) | B46: =[0]!Interest -> 0.02 | C46: ="is the estimated annual rate of return on invested reserves"&IF(Remaining_Interest_Months<12,CONCATENATE("; ",Current_Fiscal_Year," is a partial year of interest earned."),".") -> is the estimated annual rate of return on invested reserves; 2023 is a partial year of interest earned.
A47: 4) | B47: Accumulated year 2053 ending reserves consider the need to fund for repaving of the asphalt pavement parking areas shortly after 2053, and the age, size, overall condition and complexity of the property.
A48: =IF(OR(COUNTIF(A1:T40,"(NOTE 5)")>0,COUNTIF(A1:T40,"(NOTES 4&5)")>0),"5)","") -> 5) | B48: =IF(OR(COUNTIF(A1:T40,"(NOTE 5)")>0,COUNTIF(A1:T40,"(NOTES 4&5)")>0),"Threshold Funding Year (reserve balance at critical point).","") -> Threshold Funding Year (reserve balance at critical point).
K51: Recommended Reserve Funding Table
K54: Year | L54: Reserve Contributions | M54: Reserve Balances | N54: Year | O54: Reserve Contributions | P54: Reserve Balances | Q54: Year | R54: Reserve Contributions | S54: Reserve Balances
K57: =Current_Fiscal_Year+1 -> 2024 | L57: =F11 -> 12300 | M57: =F16 -> 97335.98 | N57: =K57+10 -> 2034 | O57: =P11 -> 16600 | P57: =P16 -> 69765.98 | Q57: =N57+10 -> 2044 | R57: =K32 -> 22200 | S57: =K37 -> 258959.98
K59: =K57+1 -> 2025 | L59: =G11 -> 12700 | M59: =G16 -> 112109.98 | N59: =N57+1 -> 2035 | O59: =Q11 -> 17100 | P59: =Q16 -> 88431.98 | Q59: =Q57+1 -> 2045 | R59: =L32 -> 22900 | S59: =L37 -> 47952.98
K61: =K59+1 -> 2026 | L61: =H11 -> 13100 | M61: =H16 -> 127582.98 | N61: =N59+1 -> 2036 | O61: =R11 -> 17600 | P61: =R16 -> 107976.98 | Q61: =Q59+1 -> 2046 | R61: =M32 -> 23600 | S61: =M37 -> 72747.98
K63: =K61+1 -> 2027 | L63: =I11 -> 13500 | M63: =I16 -> 130696.98 | N63: =N61+1 -> 2037 | O63: =S11 -> 18100 | P63: =S16 -> 110848.98 | Q63: =Q61+1 -> 2047 | R63: =N32 -> 24300 | S63: =N37 -> 75134.98
K65: =K63+1 -> 2028 | L65: =J11 -> 13900 | M65: =J16 -> 147349.98 | N65: =N63+1 -> 2038 | O65: =T11 -> 18600 | P65: =T16 -> 131851.98 | Q65: =Q63+1 -> 2048 | R65: =O32 -> 25000 | S65: =O37 -> 101887.98
K67: =K65+1 -> 2029 | L67: =K11 -> 14300 | M67: =K16 -> 164739.98 | N67: =N65+1 -> 2039 | O67: =F32 -> 19200 | P67: =F37 -> 153880.98 | Q67: =Q65+1 -> 2049 | R67: =P32 -> 25700 | S67: =P37 -> 129882.98
K69: =K67+1 -> 2030 | L69: =L11 -> 14700 | M69: =L16 -> 29274.98 | N69: =N67+1 -> 2040 | O69: =G32 -> 19800 | P69: =G37 -> 176956.98 | Q69: =Q67+1 -> 2050 | R69: =Q32 -> 26500 | S69: =Q37 -> 159245.98
K71: =K69+1 -> 2031 | L71: =M11 -> 15100 | M71: =M16 -> 33724.98 | N71: =N69+1 -> 2041 | O71: =H32 -> 20400 | P71: =H37 -> 201099.98 | Q71: =Q69+1 -> 2051 | R71: =R32 -> 27300 | S71: =R37 -> 169436.98
K73: =K71+1 -> 2032 | L73: =N11 -> 15600 | M73: =N16 -> 34999.98 | N73: =N71+1 -> 2042 | O73: =I32 -> 21000 | P73: =I37 -> 205964.98 | Q73: =Q71+1 -> 2052 | R73: =S32 -> 28100 | S73: =S37 -> 173834.98
K75: =K73+1 -> 2033 | L75: =O11 -> 16100 | M75: =O16 -> 51960.98 | N75: =N73+1 -> 2043 | O75: =J32 -> 21600 | P75: =J37 -> 231899.98 | Q75: =Q73+1 -> 2053 | R75: =T32 -> 28900 | S75: =T37 -> 206500.98
D160: =Funding_Plan_CurrentContrib -> 0 | E160: =Funding_Plan_NextContrib -> Not Budgeted | F160: 12300 | G160: 12700 | H160: 13100 | I160: 13500 | J160: 13900 | K160: 14300 | L160: 14700 | M160: 15100 | N160: 15600 | O160: 16100 | P160: 16600 | Q160: 17100 | R160: 17600 | S160: 18100 | T160: 18600
E161: 12300
F163: 19200 | G163: 19800 | H163: 20400 | I163: 21000 | J163: 21600 | K163: 22200 | L163: 22900 | M163: 23600 | N163: 24300 | O163: 25000 | P163: 25700 | Q163: 26500 | R163: 27300 | S163: 28100 | T163: 28900
T166: 206500.98
F167: =Current_Fiscal_Year + 1 -> 2024 | G167: =F167 + 1 -> 2025 | H167: 2026 | I167: 2027 | J167: 2028 | K167: 2029 | L167: 2030 | M167: 2031 | N167: 2032 | O167: 2033 | P167: 2034 | Q167: 2035 | R167: 2036 | S167: 2037 | T167: 2038 | U167: 2039 | V167: 2040 | W167: 2041 | X167: 2042 | Y167: 2043 | Z167: 2044 | AA167: 2045 | AB167: 2046 | AC167: 2047 | AD167: 2048 | AE167: 2049 | AF167: 2050 | AG167: 2051 | AH167: 2052 | AI167: 2053
F168: standard | G168: standard | H168: standard | I168: standard | J168: standard | K168: standard | L168: standard | M168: standard | N168: standard | O168: standard | P168: standard | Q168: standard | R168: standard | S168: standard | T168: standard | U168: standard | V168: standard | W168: standard | X168: standard | Y168: standard | Z168: standard | AA168: standard | AB168: standard | AC168: standard | AD168: standard | AE168: standard | AF168: standard | AG168: standard | AH168: standard | AI168: standard
F169: 12300
F170: 12300
E172: Year | F172: =E6 -> 2023 | G172: 2024 | H172: 2025 | I172: 2026 | J172: 2027 | K172: 2028 | L172: 2029 | M172: 2030 | N172: 2031 | O172: 2032 | P172: 2033 | Q172: 2034 | R172: 2035 | S172: 2036 | T172: 2037 | U172: 2038 | V172: =F27 -> 2039 | W172: 2040 | X172: 2041 | Y172: 2042 | Z172: 2043 | AA172: 2044 | AB172: 2045 | AC172: 2046 | AD172: 2047 | AE172: 2048 | AF172: 2049 | AG172: 2050 | AH172: 2051 | AI172: 2052 | AJ172: 2053
E173: Reserve Expenditures | F173: =E14/1000 -> 0 | G173: 0 | H173: 0 | I173: 0 | J173: -12.943 | K173: 0 | L173: 0 | M173: -152.086 | N173: -11.274 | O173: -15.005 | P173: 0 | Q173: 0 | R173: 0 | S173: 0 | T173: -17.395 | U173: 0 | V173: =F35/1000 -> 0 | W173: 0 | X173: 0 | Y173: -20.165 | Z173: 0 | AA173: 0 | AB173: -236.946 | AC173: 0 | AD173: -23.377 | AE173: 0 | AF173: 0 | AG173: 0 | AH173: -20.363 | AI173: -27.101 | AJ173: 0
E174: Recommended Reserve Contributions | F174: =E8/1000 -> 0 | G174: 12.3 | H174: 12.7 | I174: 13.1 | J174: 13.5 | K174: 13.9 | L174: 14.3 | M174: 14.7 | N174: 15.1 | O174: 15.6 | P174: 16.1 | Q174: 16.6 | R174: 17.1 | S174: 17.6 | T174: 18.1 | U174: 18.6 | V174: =F29/1000 -> 19.2 | W174: 19.8 | X174: 20.4 | Y174: 21 | Z174: 21.6 | AA174: 22.2 | AB174: 22.9 | AC174: 23.6 | AD174: 24.3 | AE174: 25 | AF174: 25.7 | AG174: 26.5 | AH174: 27.3 | AI174: 28.1 | AJ174: 28.9
E175: Additional Reserve Contributions | F175: =E9/1000 -> 
E176: Additional Assessment | F176: =E10/1000 -> 
E177: Year-End Reserve Balance | F177: =E16/1000 -> 83.24798 | G177: 97.33598 | H177: 112.10998 | I177: 127.58298 | J177: 130.69698 | K177: 147.34998 | L177: 164.73998 | M177: 29.27498 | N177: 33.72498 | O177: 34.99998 | P177: 51.96098 | Q177: 69.76598 | R177: 88.43198 | S177: 107.97698 | T177: 110.84898 | U177: 131.85198 | V177: =F37/1000 -> 153.88098 | W177: 176.95698 | X177: 201.09998 | Y177: 205.96498 | Z177: 231.89998 | AA177: 258.95998 | AB177: 47.95298 | AC177: 72.74798 | AD177: 75.13498 | AE177: 101.88798 | AF177: 129.88298 | AG177: 159.24598 | AH177: 169.43698 | AI177: 173.83498 | AJ177: 206.50098
C190: This funding plan comprises the following sheets:
C191: Expenditures
